[Event "GER-ch Youth-U12 2022"]
[Site "Willingen"]
[Date "2022.06.05"]
[Round "1.11"]
[White "Buchinger, Alexis"]
[Black "Radeke, Timothy"]
[Result "1-0"]
[ECO "C54"]
[WhiteElo "1676"]
[BlackElo "1129"]
[Annotator "NA RC COMBH"]
[PlyCount "57"]
[EventDate "2022.06.05"]
[EventType "swiss"]
[EventRounds "9"]
[EventCountry "GER"]
[SourceTitle "playchess.com"]
[Source "ChessBase"]
[SourceQuality "1"]
[TimeControl "40/4500+30:900+30"]

1. e4 {[%emt 0:00:00]} e5 {[%emt 0:00:00]} 2. Nf3 {[%emt 0:00:00]} Nc6 {[%emt 0:00:00]} 3. Bc4 {[%emt 0:00:00]} Bc5 {[%emt 0:00:00]} 4. d3 {[%emt 0:00:00]} d6 {[%emt 0:00:00]} 5. c3 {[%emt 0:00:00]} Nf6 {[%emt 0:00:00]} 6. a4 {[%emt 0:00:00]} a5 {[%emt 0:00:00]} 7. O-O {[%emt 0:00:00]} O-O {[%emt 0:00:00]} 8. Re1 {[%emt 0:00:00]} Be6 {[%emt 0:00:00]} 9. Nbd2 {[%emt 0:00:00]} Ng4 {[%emt 0:03:03]} 10. Re2 {[%emt 0:00:00]} Qf6 {[%emt 0:04:27]} 11. h3 {[%emt 0:00:00]} Nh6 {[%emt 0:00:21]} 12. Bxe6 {[%emt 0:03:22]} fxe6 {[%emt 0:02:35]} 13. Nf1 {[%emt 0:00:50]} Qg6 {[%emt 0:01:09]} 14. Kh1 {[%emt 0:03:38]} d5 {[%emt 0:02:34]} 15. Be3 {[%emt 0:03:18]} dxe4 {[%emt 0:10:33]} 16. Nh4 {[%emt 0:06:39]} Qh5 {[%emt 0:01:26]} 17. Bxc5 {[%emt 0:01:42]} Qxh4 {[%emt 0:02:04]} 18. Bxf8 {[%emt 0:07:52]} Rxf8 {[%emt 0:00:07]} 19. dxe4 {[%emt 0:00:41]} Ng4 {[%emt 0:00:43]} 20. Kg1 {[%emt 0:01:56]} Nf6 {[%emt 0:02:25]} 21. Ng3 {[%emt 0:10:11]} Ne7 {[%emt 0:02:00]} 22. Qb3 {[%emt 0:02:14]} Ng6 {[%emt 0:00:39]} 23. Qxe6+ {[%emt 0:00:37]} Kh8 {[%emt 0:00:08]} 24. Nf5 {[%emt 0:04:27]} Qg5 {[%emt 0:00:39]} 25. h4 {[%emt 0:03:44]} Qh5 {[%emt 0:00:37]} 26. Re3 {[%emt 0:02:28]} Nf4 {[%emt 0:03:55]} 27. Qxe5 {[%emt 0:09:23]} Qg4 {[%emt 0:00:47]} 28. Ng3 {[%emt 0:01:46]} Re8 {[%emt 0:01:12]} 29. Qg5 {[%emt 0:00:49]} 1-0

[Event "GER-ch Youth-U12 2022"]
[Site "Willingen"]
[Date "2022.06.05"]
[Round "1.12"]
[White "Agirretxe San Sebastian, Jesus M"]
[Black "Stichter, Constantin Paul"]
[Result "0-1"]
[ECO "E35"]
[WhiteElo "2117"]
[BlackElo "1472"]
[Annotator "TA"]
[PlyCount "66"]
[EventDate "2022.06.05"]
[EventType "swiss"]
[EventRounds "9"]
[EventCountry "GER"]
[SourceTitle "playchess.com"]
[Source "ChessBase"]
[SourceQuality "1"]
[TimeControl "40/4500+30:900+30"]

{[%evp 12,66,27,22,22,20,44,33,37,28,51,49,118,21,30,26,60,38,58,22,31,28,29,6,38,48,41,37,74,76,75,73,71,71,93,77,118,53,52,-146,-143,-112,-147,-136,-59,-62,-66,-102,0,-15,0,-929,-919,-890,-511,-29993,-29994]} 1. d4 {[%emt 0:00:00]} d5 {[%emt 0:00:00]} 2. c4 {[%emt 0:00:00]} e6 {[%emt 0:00:00]} 3. Nc3 {[%emt 0:00:00]} Nf6 {[%emt 0:00:00]} 4. cxd5 {[%emt 0:00:00]} exd5 {[%emt 0:00:00]} 5. Bg5 {[%emt 0:00:00]} c6 {[%emt 0:00:00]} 6. e3 {[%emt 0:00:00]} Bb4 {[%emt 0:00:00]} 7. Qc2 {[%emt 0:00:00]} h6 {[%emt 0:00:00] is now debated instead of 7...Nbd7. E35: Nimzo-Indian: Classical: 4...d5 5 cxd5 exd5.} 8. Bh4 {[%emt 0:00:00]} Be6 {[%emt 0:00:00]} 9. Bd3 {[%emt 0:00:00]} Nbd7 {[%emt 0:00:00] White is slightly better.} 10. Nge2 {[%emt 0:00:00]} Rc8 {[%emt 0:00:00]} 11. O-O {[%emt 0:00:00] [#]} Bd6 $146 {[%emt 0:00:00]} (11... Be7 12. Rad1 Nb6 13. f3 O-O 14. Kh1 Nh5 15. Bf2 f5 16. Rde1 Bd6 17. Ng3 Nxg3+ 18. Bxg3 Bxg3 19. hxg3) (11... O-O $14) ({Predecessor:} 11... Be7 12. Rad1 Nb6 13. f3 O-O 14. Kh1 Nh5 15. Bf2 f5 16. Rde1 Bd6 17. Ng3 Nxg3+ 18. Bxg3 Bxg3 19. hxg3 {0-1 (33) Sundararajan,K (2484)-Kholmov,R (2430) Olomouc 2005}) 12. Bg3 {[%emt 0:05:00]} (12. f4 Bg4 13. Ng3) ({White should try} 12. f4 $1 $16 {[%cal Rf4f5] And now f5 would win.} Bg4 13. Ng3) 12... Bxg3 $11 {[%emt 0:00:42]} 13. Nxg3 {[%emt 0:00:41]} c5 {[%emt 0:02:28]} 14. dxc5 {[%emt 0:00:30]} Rxc5 {[%emt 0:01:01]} 15. Bf5 {[%emt 0:03:26]} O-O {[%emt 0:01:42]} 16. Rad1 {[%emt 0:02:45]} Qc7 {[%emt 0:01:40]} 17. Qb3 {[%emt 0:11:02]} d4 {[%emt 0:04:43]} 18. Bxe6 {[%emt 0:01:45]} dxc3 {[%emt 0:00:03]} 19. Bxd7 {[%emt 0:00:10]} c2 {[%emt 0:00:09] [#]} (19... Nxd7 20. bxc3 Nf6) 20. Rc1 {[%emt 0:01:00]} Nxd7 {[%emt 0:01:05]} (20... Qxd7 21. Rxc2) 21. Ne4 $1 {[%emt 0:00:17]} Rh5 {[%emt 0:00:10][%csl Gh5][%cal Rc7h2]} 22. h3 {[%emt 0:00:17]} Rc8 {[%emt 0:00:45]} 23. Nc3 {[%emt 0:02:42]} Ne5 {[%emt 0:00:12][%cal Oe5f3] ( -> ...Nf3+!)} 24. f4 {[%emt 0:05:26]} (24. Nd5 $1 $16 {[%cal Rd5c7]} Qc5 25. e4) 24... Nc4 $14 {[%emt 0:00:20]} 25. Qxc2 $2 {[%emt 0:05:29]} (25. Rfe1 $14 {keeps the upper hand.}) 25... Nxe3 $17 {[%emt 0:00:33]} 26. Qe2 {[%emt 0:00:05]} Nxf1 {[%emt 0:01:37] Black is more active.} 27. Qxh5 {[%emt 0:01:42] [#]} Nd2 {[%emt 0:01:15]} (27... Qb6+ $1 $17 28. Kxf1 Qxb2) 28. Qg4 {[%emt 0:05:31]} Qb6+ {[%emt 0:01:24]} 29. Kh2 {[%emt 0:00:25] [#]} Rd8 {[%emt 0:01:22]} ({Black should play} 29... Rc6 $1 $17 30. Rd1 Qxb2) 30. Ne2 {[%emt 0:07:19]} Qxb2 {[%emt 0:01:07]} 31. Rc7 $2 {[%emt 0:05:32][%mdl 8192]} (31. Rc8 $11 Qb6 32. Ng3) 31... Nf1+ $19 {[%emt 0:00:16]} 32. Kh1 {[%emt 0:00:39] [#]} Qxe2 $3 {[%emt 0:00:17][%mdl 512]} 33. Qf5 {[%emt 0:02:30]} (33. Rc8 $19 Qe8 34. Rxd8 Qxd8 35. Qf3) (33. Qxe2 Ng3+) 33... Ng3+ {[%emt 0:00:03] Weighted Error Value: White=0.71/Black=0.35} 0-1

[Event "GER-ch Youth-U12 2022"]
[Site "Willingen"]
[Date "2022.06.05"]
[Round "1.13"]
[White "Polzin, Gustav"]
[Black "Riechenberg, Sebastian"]
[Result "0-1"]
[ECO "C50"]
[WhiteElo "1643"]
[BlackElo "1668"]
[Annotator "NA RC COMBH"]
[PlyCount "170"]
[EventDate "2022.06.05"]
[EventType "swiss"]
[EventRounds "9"]
[EventCountry "GER"]
[SourceTitle "playchess.com"]
[Source "ChessBase"]
[SourceQuality "1"]
[TimeControl "40/4500+30:900+30"]

1. e4 {[%emt 0:00:00]} e5 {[%emt 0:00:00]} 2. Nf3 {[%emt 0:00:00]} Nc6 {[%emt 0:00:00]} 3. Bc4 {[%emt 0:00:00]} Nf6 {[%emt 0:00:00]} 4. d3 {[%emt 0:00:00]} Bc5 {[%emt 0:00:00]} 5. Nc3 {[%emt 0:00:00]} a6 {[%emt 0:00:00]} 6. Bg5 {[%emt 0:00:00]} h6 {[%emt 0:00:00]} 7. Bh4 {[%emt 0:00:00]} d6 {[%emt 0:00:00]} 8. Nd5 {[%emt 0:00:00]} g5 {[%emt 0:00:00]} 9. Nxg5 {[%emt 0:00:00]} Nxd5 {[%emt 0:00:00]} 10. Qh5 {[%emt 0:00:00]} hxg5 {[%emt 0:11:02]} 11. Qxh8+ {[%emt 0:00:00]} Kd7 {[%emt 0:01:53]} 12. Qg7 {[%emt 0:00:46]} gxh4 {[%emt 0:03:26]} 13. Qxf7+ {[%emt 0:02:57]} Qe7 {[%emt 0:00:56]} 14. Bxd5 {[%emt 0:05:02]} Qxf7 {[%emt 0:01:50]} 15. Bxf7 {[%emt 0:00:19]} Ke7 {[%emt 0:00:23]} 16. Bh5 {[%emt 0:01:40]} Be6 {[%emt 0:00:52]} 17. c3 {[%emt 0:00:54]} Kf6 {[%emt 0:02:36]} 18. Ke2 {[%emt 0:01:00]} Rf8 {[%emt 0:03:33]} 19. h3 {[%emt 0:04:16]} Ne7 {[%emt 0:01:36]} 20. f4 {[%emt 0:03:35]} Rg8 {[%emt 0:10:17]} 21. fxe5+ {[%emt 0:07:10]} dxe5 {[%emt 0:00:46]} 22. Raf1+ {[%emt 0:01:37]} Kg7 {[%emt 0:01:40]} 23. Bf3 {[%emt 0:12:10]} Ng6 {[%emt 0:03:41]} 24. Rd1 {[%emt 0:02:48]} Nf4+ {[%emt 0:00:45]} 25. Kf1 {[%emt 0:00:46]} Rd8 {[%emt 0:00:14]} 26. Be2 {[%emt 0:02:21]} Bxa2 {[%emt 0:01:12]} 27. b4 {[%emt 0:01:44]} Bb6 {[%emt 0:03:17]} 28. c4 {[%emt 0:03:31]} Bb3 {[%emt 0:03:18]} 29. Rc1 {[%emt 0:00:47]} Be3 {[%emt 0:02:18]} 30. Rc3 {[%emt 0:00:17]} Ba4 {[%emt 0:00:08]} 31. b5 {[%emt 0:03:22]} Bd2 {[%emt 0:02:03]} 32. Ra3 {[%emt 0:00:40]} axb5 {[%emt 0:00:31]} 33. cxb5 {[%emt 0:00:37]} Bxb5 {[%emt 0:01:24]} 34. Rb3 {[%emt 0:00:07]} c6 {[%emt 0:02:27]} 35. Rh2 {[%emt 0:00:27]} Ra8 {[%emt 0:03:37]} 36. Kf2 {[%emt 0:00:29]} Ra1 {[%emt 0:00:33]} 37. Bf1 {[%emt 0:01:35]} Ba5 {[%emt 0:01:19]} 38. Rh1 {[%emt 0:00:53]} Ra2+ {[%emt 0:00:53]} 39. Kf3 {[%emt 0:00:24]} Ba4 {[%emt 0:02:07]} 40. Rxb7+ {[%emt 0:00:05]} Kg6 {[%emt 0:00:06]} 41. Kg4 {[%emt 0:16:27]} Bd1+ {[%emt 0:15:32]} 42. Kxh4 {[%emt 0:00:12]} Bd8+ {[%emt 0:00:34]} 43. Kg3 {[%emt 0:00:16]} Nh5+ {[%emt 0:02:57]} 44. Kh2 {[%emt 0:00:42]} Bh4 {[%emt 0:00:42]} 45. d4 {[%emt 0:00:46]} Bg3+ {[%emt 0:06:46]} 46. Kg1 {[%emt 0:00:32]} Nf4 {[%emt 0:00:29]} 47. Rb1 {[%emt 0:01:54]} Bc2 {[%emt 0:01:13]} 48. Rb8 {[%emt 0:01:10]} Nh5 {[%emt 0:04:18]} 49. Rg8+ {[%emt 0:00:52]} Kf6 {[%emt 0:01:36]} 50. dxe5+ {[%emt 0:00:24]} Ke7 {[%emt 0:01:43]} 51. Rg5 {[%emt 0:04:28]} Bd1 {[%emt 0:00:52]} 52. Rf5 {[%emt 0:03:31]} Ra1 {[%emt 0:01:43]} 53. e6 {[%emt 0:04:17]} Nf4 {[%emt 0:00:45]} 54. Rxf4 {[%emt 0:04:32]} Bxf4 {[%emt 0:00:06]} 55. h4 {[%emt 0:01:36]} Be2 {[%emt 0:01:34]} 56. Kf2 {[%emt 0:00:12]} Bxf1 {[%emt 0:00:13]} 57. Rxf1 {[%emt 0:00:19]} Bg3+ {[%emt 0:00:06]} 58. Ke2 {[%emt 0:00:01]} Rxf1 {[%emt 0:00:10]} 59. Kxf1 {[%emt 0:00:27]} Bxh4 {[%emt 0:00:09]} 60. Ke2 {[%emt 0:00:23]} Kxe6 {[%emt 0:00:05]} 61. Kd3 {[%emt 0:00:11]} Ke5 {[%emt 0:01:57]} 62. g4 {[%emt 0:01:21]} Bf2 {[%emt 0:02:38]} 63. g5 {[%emt 0:00:20]} c5 {[%emt 0:00:15]} 64. Kc4 {[%emt 0:00:32]} Bd4 {[%emt 0:02:16]} 65. Kd3 {[%emt 0:05:43]} Kf4 {[%emt 0:00:58]} 66. Kc4 {[%emt 0:03:20]} Kxg5 {[%emt 0:00:31]} 67. e5 {[%emt 0:00:11]} Kg6 {[%emt 0:00:34]} 68. Kd5 {[%emt 0:01:33]} Kf7 {[%emt 0:00:08]} 69. e6+ {[%emt 0:00:29]} Ke7 {[%emt 0:00:06]} 70. Kc4 {[%emt 0:00:05]} Kxe6 {[%emt 0:00:04]} 71. Kd3 {[%emt 0:00:04]} Kd5 {[%emt 0:00:07]} 72. Kc2 {[%emt 0:00:04]} Be5 {[%emt 0:00:13]} 73. Kd2 {[%emt 0:00:05]} Kd4 {[%emt 0:00:05]} 74. Kc2 {[%emt 0:00:03]} c4 {[%emt 0:00:03]} 75. Kd2 {[%emt 0:00:04]} Bf4+ {[%emt 0:00:05]} 76. Kc2 {[%emt 0:00:08]} c3 {[%emt 0:00:06]} 77. Kd1 {[%emt 0:00:02]} Kd3 {[%emt 0:00:06]} 78. Ke1 {[%emt 0:00:04]} c2 {[%emt 0:00:05]} 79. Kf2 {[%emt 0:00:03]} c1=Q {[%emt 0:00:31]} 80. Kf3 {[%emt 0:00:02]} Bh6 {[%emt 0:00:25]} 81. Kg2 {[%emt 0:00:07]} Qe3 {[%emt 0:00:10]} 82. Kf1 {[%emt 0:00:04]} Qd2 {[%emt 0:00:10]} 83. Kg1 {[%emt 0:00:04]} Ke3 {[%emt 0:00:10]} 84. Kh1 {[%emt 0:00:05]} Kf3 {[%emt 0:00:05]} 85. Kg1 {[%emt 0:00:03]} Qg2# {[%emt 0:00:34]} 0-1

[Event "GER-ch Youth-U12 2022"]
[Site "Willingen"]
[Date "2022.06.05"]
[Round "1.14"]
[White "Dell, Philip"]
[Black "Wartenberg, Alexander"]
[Result "0-1"]
[ECO "A00"]
[WhiteElo "1457"]
[BlackElo "1682"]
[Annotator "NA RC COMBH"]
[PlyCount "64"]
[EventDate "2022.06.05"]
[EventType "swiss"]
[EventRounds "9"]
[EventCountry "GER"]
[SourceTitle "playchess.com"]
[Source "ChessBase"]
[SourceQuality "1"]
[TimeControl "40/4500+30:900+30"]

1. b4 {[%emt 0:00:00]} e5 {[%emt 0:00:00]} 2. Bb2 {[%emt 0:00:00]} Bxb4 {[%emt 0:00:00]} 3. Bxe5 {[%emt 0:00:00]} Nf6 {[%emt 0:00:00]} 4. Nf3 {[%emt 0:00:00]} O-O {[%emt 0:00:00]} 5. e3 {[%emt 0:00:00]} d6 {[%emt 0:00:00]} 6. Bb2 {[%emt 0:00:00]} d5 {[%emt 0:00:00]} 7. Be2 {[%emt 0:00:00]} Nc6 {[%emt 0:00:00]} 8. O-O {[%emt 0:00:00]} Bg4 {[%emt 0:00:00]} 9. d4 {[%emt 0:00:00]} Ne4 {[%emt 0:00:00]} 10. Nbd2 {[%emt 0:00:00]} f5 {[%emt 0:12:09]} 11. Nxe4 {[%emt 0:00:00]} fxe4 {[%emt 0:00:25]} 12. Nd2 {[%emt 0:00:00]} Be6 {[%emt 0:02:02]} 13. c4 {[%emt 0:00:00]} Qg5 {[%emt 0:09:04]} 14. Nxe4 {[%emt 0:02:55]} dxe4 {[%emt 0:00:46]} 15. d5 {[%emt 0:00:38]} Bh3 {[%emt 0:00:53]} 16. g3 {[%emt 0:01:45]} Bxf1 {[%emt 0:00:18]} 17. Bxf1 {[%emt 0:00:01]} Ne5 {[%emt 0:01:07]} 18. Be2 {[%emt 0:01:35]} Nf3+ {[%emt 0:00:21]} 19. Bxf3 {[%emt 0:00:06]} exf3 {[%emt 0:00:07]} 20. h3 {[%emt 0:01:59]} Bd6 {[%emt 0:00:39]} 21. Kh2 {[%emt 0:00:44]} Be5 {[%emt 0:00:19]} 22. Qc2 {[%emt 0:02:05]} Bxb2 {[%emt 0:00:27]} 23. Qxb2 {[%emt 0:00:04]} Qf6 {[%emt 0:00:09]} 24. Qc1 {[%emt 0:00:18]} c6 {[%emt 0:00:04]} 25. Rb1 {[%emt 0:00:15]} b6 {[%emt 0:00:32]} 26. Qd2 {[%emt 0:00:19]} Qf5 {[%emt 0:00:28]} 27. Rd1 {[%emt 0:00:29]} cxd5 {[%emt 0:00:12]} 28. cxd5 {[%emt 0:00:07]} Rac8 {[%emt 0:00:08]} 29. Qd4 {[%emt 0:01:48]} Rc2 {[%emt 0:02:17]} 30. e4 {[%emt 0:00:11]} Qc8 {[%emt 0:01:52]} 31. Qd3 {[%emt 0:02:00]} Rxf2+ {[%emt 0:00:35]} 32. Kg1 {[%emt 0:00:10]} Rg2+ {[%emt 0:00:09]} 0-1

[Event "GER-ch Youth-U12 2022"]
[Site "Willingen"]
[Date "2022.06.05"]
[Round "1.15"]
[White "Lu, Yunong Elias"]
[Black "Wang, Arthur D"]
[Result "1-0"]
[ECO "C63"]
[WhiteElo "1671"]
[BlackElo "2090"]
[Annotator "TA"]
[PlyCount "115"]
[EventDate "2022.06.05"]
[EventType "swiss"]
[EventRounds "9"]
[EventCountry "GER"]
[SourceTitle "playchess.com"]
[Source "ChessBase"]
[SourceQuality "1"]
[TimeControl "40/4500+30:900+30"]

{[%evp 9,115,32,51,25,33,6,0,-9,0,-16,0,0,0,14,32,19,31,29,56,32,43,22,145,145,145,166,152,17,34,0,322,307,303,310,343,307,312,310,384,347,429,388,364,343,339,274,275,195,180,0,401,403,1022,1036,1029,1040,969,950,1036,641,612,649,638,633,708,700,835,661,684,577,639,639,738,722,762,755,966,955,4290,3772,5481,1797,1735,1569,29977,29978,29978,29979,29979,29979,29980,29981,29981,29982,29982,29983,29983,29984,29984,29985,29985,29986,29986,29987,29988,29989,29989,29990]} 1. e4 {[%emt 0:00:00]} e5 {[%emt 0:00:00]} 2. Nf3 {[%emt 0:00:00]} Nc6 {[%emt 0:00:00]} 3. Bb5 {[%emt 0:00:00]} f5 {[%emt 0:00:00]} 4. d3 {[%emt 0:00:00]} fxe4 {[%emt 0:00:00]} 5. dxe4 {[%emt 0:00:00]} d6 {[%emt 0:00:00]} 6. h3 {[%emt 0:00:00] C63: Ruy Lopez: Schliemann/Jaenisch Defence.} (6. Ng5 {keeps more tension.} Be7 7. h4 Bxg5 8. Qh5+) 6... Nf6 {[%emt 0:00:00]} 7. Nbd2 {[%emt 0:00:00]} Be7 {[%emt 0:00:00]} 8. c3 {[%emt 0:00:00] The position is equal.} O-O {[%emt 0:00:00]} 9. O-O {[%emt 0:00:00]} h6 {[%emt 0:00:00]} 10. Re1 {[%emt 0:00:00]} a6 {[%emt 0:00:00]} 11. Ba4 {[%emt 0:01:11] [#]} b5 $146 {[%emt 0:00:40]} ({Predecessor:} 11... Nd7 12. Nf1 Nc5 13. Bc2 a5 14. Ne3 g6 15. Nd5 Kg7 16. Be3 Ne6 17. Qd2 g5 {0-1 (83) Martinez Villar,F-Adell Corts,F (2155) Cullera 1995}) 12. Bc2 {[%emt 0:02:18]} Qe8 {[%emt 0:02:53]} 13. Nf1 {[%emt 0:03:21]} Nh5 {[%emt 0:02:58]} 14. a4 {[%emt 0:02:07]} Qg6 {[%emt 0:05:45]} 15. Kh1 {[%emt 0:06:02]} Bd7 {[%emt 0:01:43]} (15... Be6 $11) 16. axb5 $1 $16 {[%emt 0:02:38]} axb5 {[%emt 0:00:38]} 17. Rxa8 {[%emt 0:00:57]} Rxa8 {[%emt 0:00:13] [#]} 18. Be3 {[%emt 0:04:03]} (18. Nxe5 $1 $16 {[%mdl 512]} dxe5 (18... Nxe5 19. Qd5+) 19. Qxd7) 18... Rf8 {[%emt 0:01:27]} 19. N1h2 {[%emt 0:09:40][%cal Bf1h2,Bh2f3,Bf3e5][%mdl 32]} Nd8 $2 {[%emt 0:03:50][%mdl 8192]} (19... Qe8 $11) 20. Nxe5 $1 $18 {[%emt 0:03:04]} dxe5 {[%emt 0:00:59]} 21. Qxd7 {[%emt 0:00:42]} Bg5 {[%emt 0:03:01]} 22. Bxg5 {[%emt 0:03:14]} (22. Qxc7 Bxe3 23. fxe3 Qg3 $16) 22... Qxg5 {[%emt 0:00:25]} 23. Nf3 {[%emt 0:03:20]} Qf4 {[%emt 0:05:33]} 24. Bb3+ {[%emt 0:03:54]} Kh8 {[%emt 0:04:21]} 25. Qxb5 {[%emt 0:00:33]} Nf7 {[%emt 0:06:02]} 26. Bxf7 {[%emt 0:01:50]} Qxf7 {[%emt 0:00:09]} 27. Qd5 {[%emt 0:03:04]} ({Less strong is} 27. Nxe5 Qxf2 28. Ng6+ Kg8 $16) 27... Qf6 {[%emt 0:01:39]} 28. Nxe5 {[%emt 0:02:57] Black must now prevent Ng4.} Nf4 {[%emt 0:01:59]} 29. Qb5 {[%emt 0:08:32]} ({White should try} 29. Qd4 $18) 29... Qg5 $2 {[%emt 0:01:23][%mdl 8192]} (29... Nxg2 $1 $11 {and Black has nothing to worry.} 30. Ng4 Qf3) 30. g3 {[%emt 0:04:33]} Nxh3 {[%emt 0:00:54] [#]} (30... Ng6 $142 31. Nxg6+ Qxg6) 31. Nf7+ $1 {[%emt 0:02:09][%mdl 512]} Rxf7 {[%emt 0:01:20]} 32. Qe8+ {[%emt 0:00:00]} Kh7 {[%emt 0:01:07]} 33. Qxf7 {[%emt 0:00:00][%mdl 4096] Endgame KQR-KQN} Qd2 {[%emt 0:00:35]} 34. Rf1 {[%emt 0:00:00] Qf5+ is the strong threat.} Ng5 {[%emt 0:01:06]} 35. Qf5+ {[%emt 0:00:26]} g6 {[%emt 0:01:19]} 36. Qf4 {[%emt 0:01:29]} Qd7 {[%emt 0:01:16]} 37. Ra1 {[%emt 0:04:11]} Ne6 {[%emt 0:01:33]} 38. Qg4 {[%emt 0:02:02]} h5 {[%emt 0:01:12]} 39. Rd1 {[%emt 0:02:46]} Qf7 {[%emt 0:00:58]} 40. Qe2 {[%emt 0:00:44]} Ng5 {[%emt 0:02:58]} 41. Rd5 {[%emt 0:18:05]} Ne6 {[%emt 0:16:10]} 42. Kg2 {[%emt 0:03:23]} Qf6 {[%emt 0:01:24]} 43. Rd7+ {[%emt 0:02:49]} Kg8 {[%emt 0:01:06]} 44. Qb5 {[%emt 0:01:57]} c6 {[%emt 0:00:44]} 45. Qb8+ {[%emt 0:01:01]} Nf8 {[%emt 0:00:18]} 46. Rd8 {[%emt 0:00:10][%cal Og3g4] g4! would kill now.} Qf7 {[%emt 0:00:33] [#]} 47. Rxf8+ $1 {[%emt 0:00:12] White mates.} Qxf8 {[%emt 0:00:05]} 48. Qxf8+ {[%emt 0:00:13]} Kxf8 {[%emt 0:00:02] KP-KP} 49. g4 {[%emt 0:00:25]} Ke7 {[%emt 0:00:11]} 50. gxh5 {[%emt 0:00:11]} gxh5 {[%emt 0:00:08]} 51. Kg3 {[%emt 0:00:15]} Kf6 {[%emt 0:00:12]} 52. f4 {[%emt 0:00:24]} Kg6 {[%emt 0:00:11]} 53. Kh4 {[%emt 0:00:17]} c5 {[%emt 0:00:14]} 54. b4 {[%emt 0:00:20]} cxb4 {[%emt 0:00:16]} 55. cxb4 {[%emt 0:00:51]} Kf6 {[%emt 0:00:14]} 56. Kxh5 {[%emt 0:00:13]} Ke6 {[%emt 0:00:06]} 57. Kg6 {[%emt 0:00:11]} Kd6 {[%emt 0:00:07]} 58. f5 {[%emt 0:00:15] Weighted Error Value: White=0.38/Black=0.73} 1-0

[Event "GER-ch Youth-U12 2022"]
[Site "Willingen"]
[Date "2022.06.05"]
[Round "1.16"]
[White "Mukazhanov, Mansur"]
[Black "Seth, Aakrit"]
[Result "0-1"]
[ECO "B34"]
[WhiteElo "1279"]
[BlackElo "1435"]
[Annotator "NA RC COMBH"]
[PlyCount "54"]
[EventDate "2022.06.05"]
[EventType "swiss"]
[EventRounds "9"]
[EventCountry "GER"]
[SourceTitle "playchess.com"]
[Source "ChessBase"]
[SourceQuality "1"]
[TimeControl "40/4500+30:900+30"]

1. e4 {[%emt 0:00:00]} c5 {[%emt 0:00:00]} 2. Nf3 {[%emt 0:00:00]} g6 {[%emt 0:00:00]} 3. d4 {[%emt 0:00:00]} cxd4 {[%emt 0:00:00]} 4. Nxd4 {[%emt 0:00:00]} Bg7 {[%emt 0:00:00]} 5. Be3 {[%emt 0:00:00]} Nc6 {[%emt 0:00:00]} 6. Nc3 {[%emt 0:00:00]} Nf6 {[%emt 0:00:00]} 7. f3 {[%emt 0:00:00]} d5 {[%emt 0:00:00]} 8. Bb5 {[%emt 0:00:00]} Bd7 {[%emt 0:12:38]} 9. exd5 {[%emt 0:00:00]} Nb4 {[%emt 0:04:15]} 10. O-O {[%emt 0:00:00]} Nbxd5 {[%emt 0:03:47]} 11. Bf2 {[%emt 0:00:00]} Nxc3 {[%emt 0:01:37]} 12. bxc3 {[%emt 0:00:00]} O-O {[%emt 0:01:09]} 13. Rb1 {[%emt 0:00:00]} a6 {[%emt 0:06:44]} 14. Be2 {[%emt 0:00:00]} Nd5 {[%emt 0:04:26]} 15. Qd2 {[%emt 0:00:00]} e5 {[%emt 0:03:59]} 16. Nb3 {[%emt 0:00:00]} Bc6 {[%emt 0:00:20]} 17. Rfd1 {[%emt 0:00:19]} Qc7 {[%emt 0:04:09]} 18. c4 {[%emt 0:01:19]} Nf4 {[%emt 0:00:28]} 19. Bf1 {[%emt 0:00:10]} Rfd8 {[%emt 0:00:58]} 20. Qb4 {[%emt 0:00:33]} Rxd1 {[%emt 0:05:13]} 21. Rxd1 {[%emt 0:00:52]} a5 {[%emt 0:01:51]} 22. Nxa5 {[%emt 0:00:51]} Qxa5 {[%emt 0:00:58]} 23. Qxa5 {[%emt 0:00:10]} Rxa5 {[%emt 0:00:15]} 24. Rd8+ {[%emt 0:00:11]} Bf8 {[%emt 0:00:11]} 25. Bb6 {[%emt 0:00:07]} Rxa2 {[%emt 0:00:34]} 26. Bc5 {[%emt 0:00:13]} Ne6 {[%emt 0:00:07]} 27. Rxf8+ {[%emt 0:02:02]} Nxf8 {[%emt 0:01:00]} 0-1

[Event "GER-ch Youth-U12 2022"]
[Site "Willingen"]
[Date "2022.06.05"]
[Round "1.19"]
[White "Skembris, Simon Max"]
[Black "Hellenbroich, Hanno"]
[Result "1-0"]
[ECO "B75"]
[WhiteElo "1413"]
[BlackElo "1274"]
[Annotator "NA RC COMBH"]
[PlyCount "65"]
[EventDate "2022.06.05"]
[EventType "swiss"]
[EventRounds "9"]
[EventCountry "GER"]
[SourceTitle "playchess.com"]
[Source "ChessBase"]
[SourceQuality "1"]
[TimeControl "40/4500+30:900+30"]

1. e4 {[%emt 0:00:00]} c5 {[%emt 0:00:00]} 2. Nf3 {[%emt 0:00:00]} d6 {[%emt 0:00:00]} 3. d4 {[%emt 0:00:00]} cxd4 {[%emt 0:00:00]} 4. Nxd4 {[%emt 0:00:00]} Nf6 {[%emt 0:00:00]} 5. Nc3 {[%emt 0:00:00]} g6 {[%emt 0:00:00]} 6. Be3 {[%emt 0:00:00]} Bg7 {[%emt 0:00:00]} 7. f3 {[%emt 0:00:00]} Nc6 {[%emt 0:00:00]} 8. Qd2 {[%emt 0:00:00]} Bd7 {[%emt 0:00:00]} 9. g4 {[%emt 0:00:00]} Rc8 {[%emt 0:00:00]} 10. O-O-O {[%emt 0:00:00]} Ne5 {[%emt 0:00:00]} 11. g5 {[%emt 0:00:00]} Nh5 {[%emt 0:00:00]} 12. f4 {[%emt 0:00:00]} Nc4 {[%emt 0:01:48]} 13. Bxc4 {[%emt 0:00:00]} Rxc4 {[%emt 0:00:03]} 14. Nd5 {[%emt 0:01:36]} e5 {[%emt 0:19:45]} 15. fxe5 {[%emt 0:05:07]} dxe5 {[%emt 0:02:03]} 16. Nb3 {[%emt 0:04:03]} Bg4 {[%emt 0:08:25]} 17. Qd3 {[%emt 0:05:49]} Qc8 {[%emt 0:05:57]} 18. Rdf1 {[%emt 0:02:57]} Nf4 {[%emt 0:18:16]} 19. Bxf4 {[%emt 0:02:51]} exf4 {[%emt 0:00:06]} 20. Rxf4 {[%emt 0:00:36]} f5 {[%emt 0:13:28]} 21. exf5 {[%emt 0:02:03]} Rxf4 {[%emt 0:00:03]} 22. Nxf4 {[%emt 0:02:30]} Bxf5 {[%emt 0:02:57]} 23. Re1+ {[%emt 0:01:39]} Kf8 {[%emt 0:02:33]} 24. Qd6+ {[%emt 0:00:53]} Kg8 {[%emt 0:01:41]} 25. Qd5+ {[%emt 0:00:22]} Kf8 {[%emt 0:00:21]} 26. Ne6+ {[%emt 0:00:53]} Bxe6 {[%emt 0:00:08]} 27. Rxe6 {[%emt 0:00:56]} Qc7 {[%emt 0:00:44]} 28. a3 {[%emt 0:12:49]} Qf4+ {[%emt 0:00:44]} 29. Kb1 {[%emt 0:00:19]} Qc7 {[%emt 0:00:52]} 30. Nc5 {[%emt 0:01:13]} Bxb2 {[%emt 0:07:23]} 31. Kxb2 {[%emt 0:00:55]} h5 {[%emt 0:01:49]} 32. Nd7+ {[%emt 0:01:10]} Kg7 {[%emt 0:00:05]} 33. Re7# {[%emt 0:00:23]} 1-0